[Event "4NCL 2021-22"]
[Site "England"]
[Date "2022.04.30"]
[Round "7.56"]
[White "Lampard, Alice"]
[Black "Freeman, Gordon"]
[Result "1/2-1/2"]
[ECO "D23"]
[WhiteElo "2005"]
[BlackElo "2092"]
[Annotator "TA"]
[PlyCount "102"]
[EventDate "2021.11.27"]
[EventType "team-tourn"]
[EventCountry "ENG"]
[SourceTitle "playchess.com"]
[Source "ChessBase"]
[SourceQuality "1"]
[TimeControl "40/6000+30:3000+30"]

{[%evp 9,102,4,10,0,0,0,0,0,14,-9,0,0,0,0,0,-22,-14,-45,-37,-36,-35,-30,-36,-37,-32,-42,-35,-34,-37,-33,-19,-24,-8,-17,-9,-25,0,0,0,0,10,-17,-17,-18,-8,-22,-20,-21,-3,-20,0,0,-1,-3,0,0,0,0,0,0,0,0,0,0,0,-1,0,-1,-1,-20,0,0,0,0,0,0,15,0,0,0,0,0,0,0,0,0,0,0,0,0,0,0,0,0,0]} 1. d4 {[%emt 0:00:04]} d5 {[%emt 0:00:11]} 2. c4 {[%emt 0:00:09]} c6 {[%emt 0:00:11]} 3. Nf3 {[%emt 0:00:26]} Nf6 {[%emt 0:00:13]} 4. Qc2 {[%emt 0:01:08]} dxc4 {[%emt 0:01:03]} 5. Qxc4 {[%emt 0:02:06]} Bg4 {[%emt 0:01:03]} 6. e3 {[%emt 0:04:23] D23: Queen's Gambit Accepted: 3 Nf3 Nf6 sidelines.} Nbd7 {[%emt 0:08:14][%cal Oe7e5]} 7. Be2 {[%emt 0:01:54]} e6 {[%emt 0:06:11][%cal Be7e6,Be6e5][%mdl 32]} 8. O-O {[%emt 0:04:49]} Bd6 {[%emt 0:00:54]} 9. Nc3 {[%emt 0:03:28]} O-O {[%emt 0:04:44]} 10. Rd1 {[%emt 0:16:01] [#]} Qe7 $146 {[%emt 0:01:49]} ({Predecessor:} 10... Rc8 11. b4 Nb6 12. Qb3 Nfd5 13. a3 Nxc3 14. Qxc3 Nd5 15. Qc2 Bb8 16. e4 Ne7 {1-0 (25) Ramirez,H (2104)-Zapata,O (1726) Mosquera 2014}) 11. Qb3 {[%emt 0:07:52]} Rab8 {[%emt 0:05:11]} 12. e4 {[%emt 0:10:16] [#] Hoping for e5.} e5 {[%emt 0:02:04]} 13. d5 {[%emt 0:02:55]} Nc5 {[%emt 0:17:00][%csl LRb3,LRe4]} 14. Qc2 {[%emt 0:00:20]} cxd5 {[%emt 0:03:21]} 15. Nxd5 {[%emt 0:06:13]} Nxd5 {[%emt 0:00:26]} 16. Rxd5 {[%emt 0:09:17]} Be6 {[%emt 0:04:12]} 17. Rd1 {[%emt 0:00:21]} Rbc8 {[%emt 0:01:38][%cal Oc5b3] [#] Threatens to win with ...Nb3!} 18. Qb1 $1 {[%emt 0:00:42]} f6 {[%emt 0:16:21]} 19. Be3 {[%emt 0:03:12]} Rfd8 {[%emt 0:04:12]} 20. Nd2 {[%emt 0:05:52]} Qf7 {[%emt 0:03:57]} 21. b3 {[%emt 0:01:24]} Bf8 {[%emt 0:09:01]} 22. f3 {[%emt 0:03:22]} Kh8 {[%emt 0:02:09]} 23. Nc4 {[%emt 0:02:58] The position is equal.} b5 {[%emt 0:02:07]} 24. Nb2 {[%emt 0:01:09]} a6 {[%emt 0:00:53]} 25. Nd3 {[%emt 0:05:16]} Nxd3 {[%emt 0:01:07]} 26. Rxd3 {[%emt 0:00:45]} Bb4 {[%emt 0:03:39] White must now prevent ...Bc3.} 27. Qd1 {[%emt 0:03:07]} Qe7 {[%emt 0:01:58]} 28. Rc1 {[%emt 0:02:24]} h6 {[%emt 0:01:24]} 29. Bb6 {[%emt 0:04:12]} Rxd3 {[%emt 0:03:04]} 30. Rxc8+ {[%emt 0:00:19]} Bxc8 {[%emt 0:00:17]} 31. Qxd3 {[%emt 0:00:33]} Bc5+ {[%emt 0:00:55]} 32. Bxc5 {[%emt 0:00:07]} Qxc5+ {[%emt 0:00:03]} 33. Kf1 {[%emt 0:00:17]} Qc1+ {[%emt 0:02:43]} 34. Kf2 {[%emt 0:01:16]} Qc5+ {[%emt 0:01:12]} 35. Kf1 {[%emt 0:00:24]} Be6 {[%emt 0:01:26]} 36. Qd2 {[%emt 0:01:41]} Qa3 {[%emt 0:02:08]} 37. Kf2 {[%emt 0:02:06]} Kh7 {[%emt 0:00:51]} 38. Qc2 {[%emt 0:02:04]} Qd6 {[%emt 0:00:28]} 39. Qd3 {[%emt 0:00:45]} Qxd3 {[%emt 0:00:36]} 40. Bxd3 $11 {[%emt 0:00:04][%mdl 4096] Endgame KB-KB} Kg8 {[%emt 0:00:30]} 41. Ke3 {[%emt 0:53:08]} Kf8 {[%emt 0:12:58]} 42. Kd2 {[%emt 0:00:00]} Ke7 {[%emt 0:02:32]} 43. Kc3 {[%emt 0:00:00]} Kd6 {[%emt 0:00:10]} 44. a3 {[%emt 0:00:00]} Kc6 {[%emt 0:03:27]} 45. b4 {[%emt 0:00:00]} g5 {[%emt 0:00:44]} 46. Be2 {[%emt 0:00:00]} Bf7 {[%emt 0:02:34]} 47. Bd3 {[%emt 0:00:00]} h5 {[%emt 0:01:51]} 48. Be2 {[%emt 0:00:00]} h4 {[%emt 0:01:05]} 49. Bf1 {[%emt 0:00:00]} Bg6 {[%emt 0:00:50]} 50. Bd3 {[%emt 0:00:00]} Kd6 {[%emt 0:01:12]} 51. Bc2 {[%emt 0:00:00]} Be8 {[%emt 0:00:57] Weighted Error Value: White=0.05 (flawless) /Black=0.04 (flawless)} 1/2-1/2

[Event "4NCL 2021-22"]
[Site "England"]
[Date "2022.04.30"]
[Round "7.57"]
[White "Murphy, Conor E"]
[Black "Jones, Steven A"]
[Result "1/2-1/2"]
[ECO "E11"]
[WhiteElo "2421"]
[BlackElo "2215"]
[Annotator "TA"]
[PlyCount "43"]
[EventDate "2021.11.27"]
[EventType "team-tourn"]
[EventCountry "ENG"]
[SourceTitle "playchess.com"]
[Source "ChessBase"]
[SourceQuality "1"]
[TimeControl "40/6000+30:3000+30"]

{[%evp 15,43,18,27,18,15,15,13,15,15,14,20,28,22,16,21,0,24,3,17,18,21,4,17,0,0,0,7,0,17,0]} 1. d4 {[%emt 0:19:28]} Nf6 {[%emt 0:05:05]} 2. c4 {[%emt 0:00:48]} e6 {[%emt 0:01:47]} 3. Nf3 {[%emt 0:03:15]} Bb4+ {[%emt 0:01:43]} 4. Bd2 {[%emt 0:00:46]} Qe7 {[%emt 0:00:47]} 5. g3 {[%emt 0:00:36]} Nc6 {[%emt 0:01:16]} 6. Bg2 {[%emt 0:02:12]} Bxd2+ {[%emt 0:00:54]} 7. Nbxd2 {[%emt 0:01:12]} O-O {[%emt 0:00:33]} 8. O-O {[%emt 0:00:22]} d6 {[%emt 0:00:23]} 9. e3 {[%emt 0:11:15] E11: Bogo-Indian.} e5 {[%emt 0:03:12]} 10. d5 {[%emt 0:06:00]} Nb8 {[%emt 0:01:41]} 11. b4 {[%emt 0:03:01]} a5 {[%emt 0:24:42]} 12. a3 {[%emt 0:03:58]} Na6 {[%emt 0:05:02]} 13. Qb3 {[%emt 0:06:57]} Bd7 {[%emt 0:02:05][%cal Bc8d7,Bd7c6,Bc6e4][%mdl 32] [#]} 14. Rfc1 $146 {[%emt 0:06:25]} ({Predecessor:} 14. Rab1 c6 15. Rfc1 axb4 16. axb4 c5 17. bxc5 Nxc5 18. Qc3 Ra2 19. Ra1 Rfa8 20. Rxa2 Rxa2 {½-½ (47) Milutinovic,Z (2161)-Ristic,M (2194) Nis 2008}) 14... c6 {[%emt 0:10:50]} 15. dxc6 {[%emt 0:03:34]} Bxc6 {[%emt 0:00:30]} 16. Qc3 {[%emt 0:10:02]} axb4 {[%emt 0:01:29] The position is equal.} 17. axb4 {[%emt 0:00:17]} Rac8 {[%emt 0:00:29]} 18. Qa3 {[%emt 0:03:00]} Rfd8 {[%emt 0:04:56]} 19. Nb3 {[%emt 0:03:48]} Be4 {[%emt 0:08:53]} 20. Nbd2 {[%emt 0:01:55]} Bc6 {[%emt 0:00:30]} 21. Nb3 {[%emt 0:00:05]} Be4 {[%emt 0:00:15]} 22. Nbd2 {[%emt 0:04:17] An interesting draw.  Weighted Error Value: White=0.08 (flawless) /Black=0.02 (flawless)} 1/2-1/2

[Event "4NCL 2021-22"]
[Site "England"]
[Date "2022.04.30"]
[Round "7.58"]
[White "Cooper, John G"]
[Black "Tanmay Chopra"]
[Result "0-1"]
[ECO "D78"]
[WhiteElo "2234"]
[BlackElo "2313"]
[Annotator "TA"]
[PlyCount "108"]
[EventDate "2021.11.27"]
[EventType "team-tourn"]
[EventCountry "ENG"]
[SourceTitle "playchess.com"]
[Source "ChessBase"]
[SourceQuality "1"]
[TimeControl "40/6000+30:3000+30"]

{[%evp 14,108,29,22,36,1,55,20,61,45,54,50,61,0,0,0,0,0,0,-19,0,-6,29,20,52,0,0,-16,62,44,39,28,61,61,72,0,0,0,0,0,0,0,0,0,0,0,103,105,390,277,283,103,100,95,98,98,97,102,129,127,160,173,170,99,91,97,95,91,90,90,100,79,95,86,102,93,95,71,85,81,86,85,93,68,64,0,0,0,0,-1275,-1160,-1075,-1053,-1045,-618,-592,-592]} 1. Nf3 {[%emt 0:17:54]} d5 {[%emt 0:22:52]} 2. g3 {[%emt 0:00:00]} g6 {[%emt 0:00:07]} 3. Bg2 {[%emt 0:00:00]} Bg7 {[%emt 0:00:02]} 4. d4 {[%emt 0:00:00]} c6 {[%emt 0:00:05]} 5. O-O {[%emt 0:00:00]} Nf6 {[%emt 0:00:03]} 6. b3 {[%emt 0:00:00]} O-O {[%emt 0:01:34]} 7. c4 {[%emt 0:00:00]} Bf5 {[%emt 0:18:39]} 8. Bb2 {[%emt 0:00:00] [#]} b5 $146 {[%emt 0:05:26] D78: Fianchetto Grünfeld: 6 0-0 c6.} ({Predecessor:} 8... a6 9. Nc3 Nbd7 10. e3 Ne4 11. Rc1 Rc8 12. Qe2 Ndf6 13. Ne5 Nxc3 14. Bxc3 Ne4 15. Bb2 Qa5 16. f3 {½-½ (44) Carlsen,M (2864)-Niemann,H (2642) chess24.com INT 2022}) 9. Nc3 {[%emt 0:06:49]} Qb6 {[%emt 0:07:24]} (9... bxc4 $11 10. bxc4 Nbd7) 10. Ne5 {[%emt 0:04:21][%cal Rc4d5]} Qb7 {[%emt 0:03:20] The position is equal.} 11. g4 {[%emt 0:43:22]} Be6 {[%emt 0:08:05][%cal Rd5c4]} 12. g5 {[%emt 0:02:11]} Nh5 {[%emt 0:04:18][%cal Rd5c4]} 13. Nxc6 {[%emt 0:03:48]} bxc4 $11 {[%emt 0:05:31]} (13... Nxc6 14. cxd5 Nf4 15. dxc6 $16) 14. Na5 {[%emt 0:07:00][%cal Bc6a5,Ba5c4,Bc4e3][%mdl 32]} Qc7 {[%emt 0:04:07]} 15. Nxc4 {[%emt 0:02:44]} Nf4 {[%emt 0:02:44]} 16. Ne3 {[%emt 0:01:05][%cal Rc3d5]} Qd7 {[%emt 0:03:36][%mdl 1024] Black has compensation.} 17. Na4 $132 {[%emt 0:10:47][%mdl 2048] White is not holding back} Na6 {[%emt 0:02:25]} 18. Kh1 {[%emt 0:02:19]} Rad8 {[%emt 0:11:05]} 19. Rg1 {[%emt 0:02:36]} ({White should try} 19. Qd2 $1 $14) 19... f6 {[%emt 0:00:52]} 20. gxf6 {[%emt 0:00:24]} Rxf6 {[%emt 0:01:08]} (20... Bxf6 $11 21. Nc2 Nxg2 22. Rxg2 Bh3) 21. Bf3 {[%emt 0:00:40]} Nh3 {[%emt 0:01:52][%csl LRf2,LRg1]} 22. Rg2 {[%emt 0:00:09]} Bh6 {[%emt 0:01:29][%cal Oh3f2]} 23. Qd3 {[%emt 0:00:48]} Qb7 {[%emt 0:02:13]} 24. Nc5 {[%emt 0:01:25]} (24. Qc3 $16) 24... Nxc5 {[%emt 0:00:07]} 25. dxc5 {[%emt 0:00:01]} Nf4 $1 {[%emt 0:00:11][%csl LRd3,LRg2]} 26. Qc2 {[%emt 0:00:49] Threatens to win with Ng4.} Nxg2 {[%emt 0:00:18]} 27. Kxg2 {[%emt 0:01:56]} Rxf3 {[%emt 0:02:32]} 28. exf3 {[%emt 0:00:12]} d4 {[%emt 0:00:04]} 29. c6 {[%emt 0:00:13]} Qc7 {[%emt 0:00:36]} (29... Qc8 $1 $11 {remains equal.} 30. c7 Rd6) 30. Qe4 $1 $16 {[%emt 0:00:10][%csl LRd4,LRe6]} Qd6 {[%emt 0:01:57][%mdl 8192] [#]} (30... Kf7 $16) 31. Bxd4 $1 {[%emt 0:01:47][%mdl 512]} Bxe3 {[%emt 0:00:22] [#]} 32. fxe3 {[%emt 0:01:07]} ({Weaker is} 32. Bxe3 Bd5 33. Qg4 Rf8 $14) (32. c7 $1 $18 {[%cal Rc7d8] is the precise move to win.} Rf8 33. Qxe3 (33. fxe3 Bd5 $18)) 32... Bd5 {[%emt 0:00:24]} 33. Qe5 {[%emt 0:00:23]} Qxe5 {[%emt 0:00:06]} 34. Bxe5 {[%emt 0:00:05] Black must now prevent c7.} Bxc6 {[%emt 0:00:20][%mdl 4096] Endgame KRB-KRB} 35. Rc1 {[%emt 0:00:00]} Rd2+ {[%emt 0:00:26]} 36. Kg3 {[%emt 0:00:00]} Bd5 {[%emt 0:01:28]} 37. Rc5 {[%emt 0:00:00]} Be6 {[%emt 0:00:18] [#]} 38. Rc7 {[%emt 0:02:11]} (38. Rc6 $1 $18 {[%cal Rc6e6]} Kf7 39. Ra6) 38... Rxa2 {[%emt 0:00:22]} 39. Rxe7 {[%emt 0:00:06]} Bxb3 {[%emt 0:00:33]} 40. Rg7+ {[%emt 0:00:08]} Kf8 {[%emt 0:00:05]} 41. Rxh7 {[%emt 0:50:33]} Bf7 {[%emt 0:51:20]} 42. Bd6+ {[%emt 0:00:00]} Ke8 {[%emt 0:00:00]} 43. Kf4 {[%emt 0:00:00]} Rd2 {[%emt 0:00:00]} 44. Bc5 {[%emt 0:00:00]} a5 {[%emt 0:00:00][%cal Ba7a5,Ba5a4,Ba4a3,Ba3a2][%mdl 32]} 45. e4 {[%emt 0:00:00] Prevents Rd5.} Rc2 {[%emt 0:00:00]} 46. Bd6 {[%emt 0:00:00]} Rd2 {[%emt 0:00:00]} 47. e5 {[%emt 0:00:00]} a4 {[%emt 0:00:00]} 48. Kg5 {[%emt 0:00:00] Hoping for Kf6.} Rd3 {[%emt 0:00:00]} 49. e6 {[%emt 0:00:00]} Rd5+ $11 {[%emt 0:02:54]} ({Don't play} 49... Rxd6 50. Rxf7 Rxe6 51. Ra7 $16) 50. Kf4 {[%emt 0:00:01] Rh8+ would kill now.} Rxd6 {[%emt 0:00:44]} 51. Rxf7 $2 {[%emt 0:00:17][%mdl 8192] [#]} (51. exf7+ $11 Kf8 52. Rh8+ Kxf7 53. Ra8) 51... Ra6 $1 $19 {[%emt 0:01:19] ...a3 is the strong threat. Black is clearly winning.} 52. Rc7 {[%emt 0:07:07]} a3 {[%emt 0:00:12] ( -> ...a2)} 53. Rc1 {[%emt 0:00:09]} a2 {[%emt 0:00:16]} 54. Ra1 {[%emt 0:00:00]} Ra5 {[%emt 0:00:57] Weighted Error Value: White=0.37/Black=0.34} ({Inferior is} 54... Ke7 55. Kg5 $11) 0-1

[Event "4NCL 2021-22"]
[Site "England"]
[Date "2022.04.30"]
[Round "7.59"]
[White "Bisby, Daniel L"]
[Black "Blackburn, Jonathan L B"]
[Result "0-1"]
[ECO "C04"]
[WhiteElo "2296"]
[BlackElo "2227"]
[Annotator "TA"]
[PlyCount "60"]
[EventDate "2021.11.27"]
[EventType "team-tourn"]
[EventCountry "ENG"]
[SourceTitle "playchess.com"]
[Source "ChessBase"]
[SourceQuality "1"]
[TimeControl "40/6000+30:3000+30"]

{[%evp 14,60,33,17,38,33,26,14,66,40,44,47,59,72,63,45,98,35,29,22,29,23,26,27,36,-47,-50,-52,-41,-196,-191,-273,-264,-533,-365,-349,-293,-389,-386,-380,-333,-422,-372,-375,-255,-807,-793,-782,-764]} 1. e4 {[%emt 0:03:31]} e6 {[%emt 0:00:05]} 2. d4 {[%emt 0:00:20]} d5 {[%emt 0:00:06]} 3. Nd2 {[%emt 0:00:40]} Nc6 {[%emt 0:03:28]} 4. Ngf3 {[%emt 0:03:23]} Nf6 {[%emt 0:00:05]} 5. e5 {[%emt 0:00:35]} Nd7 {[%emt 0:00:03]} 6. Nb3 {[%emt 0:01:27]} a5 {[%emt 0:00:43]} 7. a4 {[%emt 0:00:49]} b6 {[%emt 0:06:27]} 8. Bb5 {[%emt 0:06:53]} Bb7 {[%emt 0:06:27] C04: French Tarrasch: 3...Nc6.} 9. O-O {[%emt 0:03:48] [#]} h6 $146 {[%emt 0:05:16]} ({Predecessor:} 9... Be7 10. Re1 O-O 11. Bf4 Na7 12. Bf1 c5 13. c3 Nc6 14. Bb5 Na7 15. Bf1 Nc6 16. Bb5 {0-1 (60) Gavrilescu,D (2213)-Yemelin,V (2574) Arad 2015}) 10. Re1 {[%emt 0:07:22]} g5 {[%emt 0:05:24]} (10... Na7 $11) 11. Nfd2 {[%emt 0:07:01]} Bg7 {[%emt 0:08:30][%cal Bf8g7,Bg7f6,Bf6e5][%mdl 32]} 12. Nf1 {[%emt 0:04:57]} Qe7 {[%emt 0:15:30]} 13. Ng3 {[%emt 0:05:40]} O-O-O {[%emt 0:03:30]} 14. Nh5 {[%emt 0:00:14]} f5 {[%emt 0:03:49]} (14... f6 $14) 15. exf6 {[%emt 0:03:46]} (15. Bd2 $16) 15... Bxf6 $14 {[%emt 0:01:09]} 16. Qg4 {[%emt 0:00:49]} Rde8 $1 {[%emt 0:04:06]} 17. Bd2 {[%emt 0:03:21] And now c4 would win.} Rhf8 {[%emt 0:02:49]} 18. Re3 {[%emt 0:04:01]} e5 {[%emt 0:06:02]} 19. dxe5 {[%emt 0:17:09]} (19. Nxf6 $14 Qxf6 20. Rf3) 19... Bxe5 $15 {[%emt 0:03:20]} 20. Rae1 {[%emt 0:03:29]} Qd6 {[%emt 0:04:36]} 21. Kh1 $2 {[%emt 0:15:05] Now White is beyond hope.} (21. Ng3 $15) 21... Rxf2 $19 {[%emt 0:02:49] Strongly threatening ...Ref8.} 22. Ng3 {[%emt 0:05:24]} (22. Rf3 $142 Rxf3 23. Qxf3) 22... Kb8 {[%emt 0:03:03]} 23. Bc3 $2 {[%emt 0:01:55]} (23. Rf3 {keeps fighting.} Nf6 24. Qf5 Rxf3 25. Qxf3) 23... Ref8 {[%emt 0:01:13] White must now prevent ...d4.} 24. Bxc6 {[%emt 0:02:15]} Bxc6 {[%emt 0:00:50]} 25. Bxe5 {[%emt 0:01:22]} Nxe5 {[%emt 0:00:20]} 26. Qd4 {[%emt 0:03:15]} ({But not} 26. Rxe5 $2 {[#]} Qxe5 $3 {[%mdl 512]} 27. Qd1 (27. Rxe5 $2 {leads to mate.} Rf1+ 28. Nxf1 Rxf1#) 27... Qxb2 $19) 26... Nc4 {[%emt 0:00:43]} 27. R3e2 {[%emt 0:00:29]} R2f4 {[%emt 0:01:58]} 28. Qc3 {[%emt 0:01:14]} h5 {[%emt 0:04:54][%cal Bh6h5,Bh5h4,Bh4g3][%mdl 32] Threatens to win with ...h4.} 29. h3 $2 {[%emt 0:00:59]} (29. Kg1 Bxa4 30. Nxh5) 29... h4 {[%emt 0:00:12]} 30. Re6 {[%emt 0:00:24] [#]} hxg3 $1 {[%emt 0:00:24] Weighted Error Value: White=0.67/Black=0.25 (precise)} 0-1

[Event "4NCL 2021-22"]
[Site "England"]
[Date "2022.04.30"]
[Round "7.60"]
[White "Kett, Tim"]
[Black "Hill, Alistair"]
[Result "1/2-1/2"]
[ECO "B33"]
[WhiteElo "2136"]
[BlackElo "2236"]
[Annotator "TA"]
[PlyCount "90"]
[EventDate "2021.11.27"]
[EventType "team-tourn"]
[EventCountry "ENG"]
[SourceTitle "playchess.com"]
[Source "ChessBase"]
[SourceQuality "1"]
[TimeControl "40/6000+30:3000+30"]

{[%evp 24,90,45,47,34,38,41,29,33,33,22,0,32,19,27,-16,-16,-22,0,-39,-38,-245,-259,-241,-256,-666,-410,-547,-390,-420,-406,-305,-341,-700,-56,-270,-268,-294,-280,-234,-179,-191,-181,-184,-184,-170,-82,-76,-93,-96,0,0,0,-31,-29,-63,0,0,0,0,0,0,0,0,0,0,0,0,0]} 1. e4 {[%emt 0:00:11]} c5 {[%emt 0:00:44]} 2. Nf3 {[%emt 0:00:34]} Nc6 {[%emt 0:00:05]} 3. d4 {[%emt 0:00:31]} cxd4 {[%emt 0:00:04]} 4. Nxd4 {[%emt 0:00:03]} Nf6 {[%emt 0:00:07]} 5. Nc3 {[%emt 0:00:14]} e5 {[%emt 0:00:04]} 6. Ndb5 {[%emt 0:00:12]} d6 {[%emt 0:00:05]} 7. Bg5 {[%emt 0:00:15]} a6 {[%emt 0:00:05]} 8. Na3 {[%emt 0:00:06]} b5 {[%emt 0:00:03]} 9. Bxf6 {[%emt 0:00:10]} gxf6 {[%emt 0:00:05]} 10. Nd5 {[%emt 0:00:06]} f5 {[%emt 0:00:10]} 11. Bd3 {[%emt 0:00:24]} Be6 {[%emt 0:00:13]} 12. c3 {[%emt 0:03:27] The modern move.} Bg7 {[%emt 0:02:27]} 13. Nc2 {[%emt 0:00:46]} Bxd5 {[%emt 0:05:12] B33: Sicilian: Pelikan and Sveshnikov Variations.} 14. exd5 {[%emt 0:00:41]} Ne7 {[%emt 0:00:04]} 15. a4 {[%emt 0:23:58]} e4 {[%emt 0:14:39] White has an edge.} 16. Be2 {[%emt 0:00:43]} bxa4 {[%emt 0:00:04]} 17. Rxa4 {[%emt 0:07:15]} Qb6 {[%emt 0:00:27] [#]} (17... Rb8 $5 {[%cal Rb8b2]}) 18. Rb4 $146 {[%emt 0:05:20]} ({Predecessor:} 18. Nb4 a5 19. Qa1 Kf8 20. O-O Be5 21. Qa3 Rg8 22. Kh1 f4 23. f3 Qe3 24. Bb5 {0-1 (35) Valdez Aguero,D (1291)-Kushnaryov,A (1982) LSS email 2009}) 18... Qc5 {[%emt 0:09:06]} 19. c4 {[%emt 0:14:38]} O-O {[%emt 0:03:54] And now ...Rfb8 would win.} 20. O-O {[%emt 0:00:08]} f4 {[%emt 0:12:55]} 21. Rb7 {[%emt 0:06:39]} Ng6 {[%emt 0:00:40]} 22. b4 $2 {[%emt 0:04:32]} ({Better is} 22. Kh1 $15) 22... Qc8 $19 {[%emt 0:00:08]} 23. Rb6 {[%emt 0:00:05] [#]} f3 $1 {[%emt 0:26:23]} 24. gxf3 $2 {[%emt 0:01:55]} (24. Rxd6 Nf4 25. Bxf3 exf3 26. Qxf3 Qxc4 27. Ne3 Ne2+ 28. Kh1 Qxb4 29. Nf5) 24... Be5 {[%emt 0:00:05] ( -> ...Qh3)} 25. fxe4 {[%emt 0:06:29]} Qd8 {[%emt 0:01:22]} 26. c5 {[%emt 0:01:49]} Qg5+ {[%emt 0:00:09]} (26... Qh4 $2 27. f4 Nxf4 28. Bg4 $19) 27. Bg4 {[%emt 0:01:27]} h5 {[%emt 0:02:04][%mdl 64] [#] White must now prevent ...Qf4. Pin} 28. Ne3 $2 {[%emt 0:05:56]} (28. Re1 hxg4 29. Ne3) 28... Bf4 $2 {[%emt 0:17:38]} (28... hxg4 29. Qxg4 Qh6 30. h3 $11) (28... Qf4 $19 {[%csl Ge5][%cal Rf4h2]} 29. Re1 Qxh2+ 30. Kf1 Qh1+ 31. Ke2 Nf4+ 32. Kd2 Qxe4) 29. Re1 $2 {[%emt 0:14:21]} hxg4 {[%emt 0:00:38]} 30. Nxg4 {[%emt 0:04:21]} Ne5 {[%emt 0:02:56]} 31. h3 {[%emt 0:00:38]} Rfb8 {[%emt 0:02:17]} 32. Rxb8+ {[%emt 0:06:53]} Rxb8 {[%emt 0:00:04]} 33. Kh1 {[%emt 0:00:35]} Qh4 {[%emt 0:06:43]} (33... Rxb4 34. Nxe5 Qxe5 35. Qg4+ Kf8 36. c6 $11) 34. Kg2 {[%emt 0:00:53]} dxc5 {[%emt 0:00:39]} (34... Rxb4 $19 {and Black stays clearly on top.} 35. c6 Kf8 36. Nxe5 Bxe5) 35. Nxe5 $17 {[%emt 0:00:45]} Bxe5 {[%emt 0:00:06]} 36. bxc5 {[%emt 0:00:06]} Kh7 {[%emt 0:01:10]} ({Black should try} 36... Kf8 $17 {aiming for ...Rb2.} 37. Qf3 (37. Qg4 Qxg4+ 38. hxg4 a5 $17) 37... Bd4) 37. Qf3 $11 {[%emt 0:00:13] Hoping for Qf5+.} Qg5+ {[%emt 0:02:37]} 38. Kf1 {[%emt 0:01:00]} Kg7 {[%emt 0:00:04]} 39. d6 {[%emt 0:00:34]} Rb2 {[%emt 0:01:11]} (39... Bd4 $15 40. d7 Bxc5) 40. Rd1 {[%emt 0:00:40] The position is equal.} Rc2 {[%emt 0:02:16]} 41. d7 {[%emt 0:07:33]} Bc7 {[%emt 0:04:42]} ({Don't play} 41... Bh2 42. Qg4 (42. Qg2 Qxg2+ 43. Kxg2 Bc7 $16) 42... Qxg4 43. hxg4 $16) 42. Rd5 {[%emt 0:04:10]} Rc1+ {[%emt 0:02:07]} 43. Ke2 {[%emt 0:00:36]} Rc2+ {[%emt 0:00:05]} 44. Kf1 {[%emt 0:00:23] Dancing on a razor blade.} Rc1+ {[%emt 0:00:06]} 45. Ke2 {[%emt 0:00:04]} Rc2+ {[%emt 0:00:04] And White is the lucky defender.  Weighted Error Value: White=0.58/Black=0.49} 1/2-1/2